bitfinex/quotes_SOLUSD_20251223
["timestamp","ask_amount","ask_price","bid_price","bid_amount"]
[1766509148326,0.72,124.77,124.73,2.07291734]
[1766509148495,0.72,124.77,124.74,1.87291734]
[1766509149411,0.72,124.77,124.73,8.21723223]
[1766509149412,1.87291734,124.77,124.73,2.07291734]
[1766509149611,0.72,124.76,124.73,2.07291734]
[1766509149824,0.72,124.76,124.73,10.0901897]
[1766509150026,0.72,124.76,124.74,1.87291734]
[1766509151428,0.72,124.74,124.71,1.87291734]
[1766509152009,0.72,124.74,124.71,2.07291734]
[1766509152216,0.72,124.73,124.7,0.2]
[1766509152408,0.72,124.72,124.7,0.2]
[1766509154822,0.72,124.72,124.7,2.07291734]
[1766509155130,0.72,124.72,124.7,0.2]
[1766509155314,10.61002511,124.74,124.7,2.27291734]
[1766509155514,0.72,124.73,124.7,2.27291734]
[1766509156025,0.72,124.73,124.7,0.2]
[1766509156233,0.72,124.73,124.7,2.07291734]
[1766509157319,0.72,124.73,124.7,10.09207202]
[1766509160331,0.72,124.74,124.71,0.2]
[1766509160706,0.72,124.72,124.7,8.21915468]
[1766509160928,0.72,124.72,124.7,2.07291734]
[1766509161121,0.72,124.72,124.7,0.2]
[1766509167834,0.72,124.71,124.69,0.2]
[1766509169623,0.72,124.7,124.69,0.2]
[1766509173523,0.72,124.7,124.68,1.87291734]
[1766509173929,0.72,124.69,124.66,2.07291734]
[1766509174841,0.72,124.69,124.66,2.67291734]
[1766509175239,10.43767296,124.68,124.67,1.87291734]
[1766509175743,8.0173174,124.73,124.68,0.68]
[1766509175920,8.0173174,124.73,124.7,1.87291734]
[1766509177755,0.66,124.72,124.7,1.87291734]
[1766509178629,0.66,124.72,124.67,9.89382822]
[1766509178630,1.87291734,124.72,124.67,9.89382822]
[1766509178939,0.66,124.71,124.68,1.87291734]
[1766509181349,0.66,124.71,124.67,10.58382822]
[1766509182032,1.87291734,124.68,124.66,0.2]
[1766509182232,0.66,124.67,124.66,0.2]
[1766509182641,0.66,124.68,124.66,0.2]
[1766509183459,10.43767296,124.67,124.66,0.2]
[1766509184969,11.09767296,124.68,124.66,0.2]
[1766509185568,19.11824425,124.68,124.66,0.2]
[1766509186179,11.09767296,124.68,124.66,0.2]
[1766509186971,10.43767296,124.68,124.66,0.89]
[1766509188145,8.67997606,124.69,124.66,2.76291734]
[1766509188553,8.67997606,124.69,124.66,0.89]
[1766509189670,12.3105903,124.67,124.63,0.2]
[1766509189869,0.66,124.66,124.63,0.89]
[1766509191669,12.9705903,124.66,124.63,0.89]
[1766509193367,20.9926337,124.66,124.63,0.89]
[1766509195979,8.0214602,124.67,124.64,0.69]
[1766509196171,8.68083382,124.68,124.65,0.69]
[1766509197462,8.68062375,124.68,124.65,0.69]
[1766509198166,10.55354109,124.68,124.65,0.69]
[1766509199189,0.66,124.67,124.64,0.69]
[1766509199681,2.53291734,124.67,124.64,0.69]
[1766509200083,0.66,124.67,124.64,0.69]
[1766509200283,0.66,124.67,124.63,0.89]
[1766509200692,1.87602688,124.66,124.63,0.89]
[1766509200988,8.68246289,124.65,124.63,0.2]
[1766509201215,10.43767296,124.62,124.61,0.2]
[1766509201491,0.66,124.61,124.58,0.2]
[1766509201693,0.66,124.61,124.58,0.89]
[1766509201896,12.97369984,124.62,124.59,0.69]
[1766509202075,11.09767296,124.62,124.59,0.69]
[1766509202277,10.43767296,124.62,124.6,0.69]
[1766509202496,42.71862013,124.65,124.61,2.93301412]
[1766509202497,0.66,124.65,124.61,2.93301412]
[1766509203173,0.66,124.65,124.62,2.93301412]
[1766509203795,0.66,124.68,124.64,2.93301412]
[1766509204087,0.66,124.68,124.63,2.93301412]
[1766509204261,0.66,124.67,124.63,2.93301412]
[1766509204468,11.09767296,124.67,124.63,2.93301412]
[1766509205365,11.09767296,124.67,124.63,10.9567185]
[1766509205772,11.09767296,124.67,124.64,2.93301412]
[1766509207286,14.03068708,124.67,124.61,28.0876334]
[1766509207482,14.03068708,124.67,124.63,2.93301412]
[1766509207796,0.71,124.64,124.6,8.82804534]
[1766509207998,0.71,124.63,124.58,11.15973341]
[1766509208181,3.64301412,124.63,124.59,2.93301412]
[1766509209985,0.71,124.63,124.59,2.93301412]
[1766509210187,21.3940203,124.64,124.59,2.93301412]
[1766509210491,0.71,124.62,124.59,2.93301412]
[1766509211402,0.71,124.62,124.59,10.95926805]
[1766509211606,0.71,124.62,124.59,2.93301412]
[1766509211773,0.71,124.62,124.58,11.15969688]
[1766509211973,0.71,124.62,124.59,2.93301412]
[1766509217414,0.71,124.62,124.58,8.22668276]
[1766509217586,0.71,124.62,124.58,11.15969688]
[1766509218409,0.71,124.62,124.59,2.93301412]
[1766509222420,21.39446366,124.63,124.6,2.93301412]
[1766509222421,0.71,124.63,124.6,2.93301412]
[1766509222903,0.71,124.63,124.59,2.93301412]
[1766509223302,0.71,124.63,124.58,11.15967412]
[1766509223303,0.71,124.62,124.58,11.15967412]
[1766509223512,0.71,124.61,124.58,0.2]
[1766509223891,0.71,124.61,124.58,3.13301412]
[1766509225601,0.71,124.61,124.58,8.22689329]
[1766509225809,0.71,124.61,124.59,2.93301412]
[1766509226496,0.71,124.61,124.58,11.15990741]
[1766509229700,0.71,124.62,124.58,11.15990741]
[1766509232520,0.71,124.62,124.58,8.22689329]
[1766509232728,0.71,124.62,124.59,2.93301412]
[1766509232930,0.71,124.62,124.6,2.93301412]
[1766509233104,0.71,124.62,124.59,10.95928608]
[1766509233304,0.71,124.62,124.59,2.93301412]
[1766509234416,0.71,124.62,124.59,10.95932614]
[1766509234935,11.15767296,124.64,124.59,8.02631202]
[1766509235141,0.72,124.63,124.6,2.93301412]
[1766509235342,0.72,124.63,124.59,8.02631202]
[1766509235548,0.72,124.63,124.6,2.93301412]
[1766509235832,0.72,124.62,124.59,2.93301412]
[1766509236011,0.72,124.62,124.58,11.15971436]
[1766509236214,0.72,124.62,124.58,8.22670024]
[1766509236542,10.43767296,124.62,124.6,2.93301412]
[1766509236920,10.43767296,124.62,124.61,2.93301412]
[1766509238232,10.43767296,124.62,124.59,8.02631444]
[1766509238434,11.11767296,124.62,124.59,2.93301412]
[1766509239321,11.11767296,124.62,124.58,11.15974636]
[1766509240642,11.11767296,124.62,124.59,2.93301412]
[1766509241437,10.43767296,124.62,124.59,2.93301412]
[1766509241947,10.43767296,124.62,124.6,2.93301412]
[1766509242630,11.11767296,124.62,124.6,2.93301412]
[1766509243235,11.11767296,124.62,124.58,8.22673224]
[1766509243422,11.11767296,124.62,124.59,2.93301412]
[1766509245423,11.11767296,124.62,124.6,2.93301412]
[1766509245939,10.43767296,124.62,124.6,2.93301412]
[1766509246618,11.11767296,124.62,124.6,2.93301412]
[1766509247440,11.11767296,124.62,124.59,8.02617185]
[1766509247614,11.11767296,124.62,124.59,10.95918597]
[1766509249245,0.68,124.62,124.59,2.93301412]
[1766509249742,0.68,124.62,124.6,2.93301412]
[1766509250343,10.43767296,124.63,124.6,2.93301412]
[1766509250644,10.43767296,124.62,124.61,2.93301412]
[1766509251731,12.21171024,124.67,124.61,10.95805223]
[1766509251936,8.70137263,124.67,124.64,2.93301412]
[1766509252140,8.02137263,124.67,124.64,2.93301412]
[1766509252339,0.68,124.66,124.64,2.93301412]
[1766509253356,8.70193332,124.66,124.64,2.93301412]
[1766509254642,0.68,124.66,124.64,2.93301412]
[1766509255050,18.45843743,124.68,124.64,2.93301412]
[1766509255259,0.68,124.69,124.66,2.93301412]
[1766509255457,0.68,124.69,124.64,14.66]
[1766509255655,0.68,124.68,124.64,17.59301412]
[1766509256154,0.68,124.66,124.61,17.59301412]
[1766509256329,0.68,124.65,124.61,14.66]
[1766509256725,0.68,124.64,124.6,10.95840255]
[1766509257670,0.68,124.64,124.61,2.93301412]
[1766509258179,0.68,124.63,124.59,21.39673381]
[1766509258369,0.68,124.63,124.59,22.68604673]
[1766509258761,0.68,124.63,124.59,17.59301412]
[1766509259443,0.68,124.63,124.6,2.93301412]
[1766509259867,0.68,124.63,124.59,22.68629978]
[1766509260063,0.68,124.63,124.6,2.93301412]
[1766509261574,0.68,124.63,124.59,14.66]
[1766509261874,0.68,124.62,124.59,14.66]
[1766509262480,0.68,124.62,124.59,17.59301412]
[1766509262861,0.68,124.62,124.59,14.66]
[1766509267181,0.68,124.62,124.59,24.56309214]
[1766509267894,0.71,124.63,124.6,1.87690293]
[1766509268772,0.71,124.63,124.6,9.90228433]
[1766509269377,0.71,124.64,124.61,1.87690293]
[1766509270087,0.71,124.64,124.6,8.0253814]
[1766509270396,0.71,124.64,124.6,9.90228433]
[1766509271876,0.71,124.64,124.61,1.87690293]
[1766509272076,0.71,124.66,124.63,1.87690293]
[1766509274083,0.71,124.69,124.65,1.87690293]
[1766509274281,0.71,124.69,124.66,1.87690293]
[1766509274481,0.71,124.69,124.64,34.99540592]
[1766509274687,0.71,124.69,124.66,1.87690293]
[1766509275000,0.71,124.69,124.64,34.99540592]
[1766509275178,0.71,124.69,124.65,9.89904717]
[1766509275374,0.71,124.69,124.67,1.87690293]
[1766509275997,0.71,124.69,124.66,1.87690293]
[1766509276399,0.71,124.66,124.61,8.02463961]
[1766509276600,0.71,124.65,124.61,9.90154254]
[1766509277082,0.71,124.65,124.62,8.02433356]
[1766509277626,0.71,124.65,124.62,9.90123649]
[1766509280210,0.71,124.65,124.6,12.31457589]
[1766509280211,1.87690293,124.65,124.6,12.31457589]
[1766509280381,2.58690293,124.65,124.6,22.21671599]
[1766509281198,0.71,124.65,124.61,1.87690293]
[1766509282306,0.71,124.64,124.6,22.21671599]
[1766509282514,0.71,124.64,124.6,9.9021401]
[1766509282687,0.71,124.64,124.61,1.87690293]
[1766509283607,10.43767296,124.65,124.61,1.87690293]
[1766509283839,11.14767296,124.65,124.61,1.87690293]
[1766509284517,19.17014146,124.65,124.61,1.87690293]
[1766509286009,0.71,124.64,124.6,9.9021401]
[1766509286634,0.71,124.63,124.6,8.02523717]
[1766509286806,0.71,124.63,124.6,9.9021401]
[1766509289411,0.71,124.64,124.6,9.9021401]
[1766509290309,0.71,124.64,124.61,1.87690293]
[1766509290508,11.14767296,124.65,124.61,9.90187197]
[1766509290903,0.71,124.64,124.61,9.90187197]
[1766509291688,0.71,124.64,124.6,8.02541187]
[1766509291888,0.71,124.64,124.6,9.9023148]
[1766509295712,10.43767296,124.65,124.61,1.87690293]
[1766509295914,0.7,124.65,124.62,1.87690293]
[1766509296708,0.7,124.65,124.61,1.87690293]
[1766509297514,0.7,124.65,124.61,9.90157173]
[1766509298301,0.7,124.65,124.62,14.66]
[1766509302020,0.7,124.65,124.62,16.53690293]
[1766509303005,0.68,124.66,124.63,1.87690293]
[1766509303927,0.68,124.66,124.62,46.49017369]
[1766509306324,0.68,124.66,124.63,1.87690293]
[1766509307008,0.68,124.66,124.62,24.56126393]
[1766509308121,2.55690293,124.65,124.61,14.64]
[1766509308427,0.68,124.64,124.61,14.64]
[1766509309212,0.68,124.64,124.61,24.54166584]
[1766509311145,0.68,124.65,124.61,24.54166584]
[1766509311439,0.68,124.65,124.62,1.87690293]
[1766509311802,0.68,124.65,124.62,9.8983674]
[1766509312305,0.68,124.65,124.62,1.87690293]
[1766509312510,0.68,124.67,124.64,1.87690293]
[1766509313224,0.68,124.64,124.59,0.71]
[1766509313421,2.55690293,124.63,124.59,8.73618467]
[1766509313611,2.55690293,124.63,124.59,0.71]
[1766509315047,10.58191666,124.62,124.59,0.71]
[1766509315457,0.68,124.61,124.58,0.91]
[1766509316324,0.68,124.61,124.58,0.2]
[1766509316524,0.68,124.61,124.59,0.71]
[1766509316823,10.58191666,124.62,124.59,0.71]
[1766509317827,0.68,124.58,124.56,1e-08]
[1766509318121,0.68,124.56,124.51,0.71]
[1766509318325,1.87690293,124.55,124.51,0.71]
[1766509318633,10.43767296,124.56,124.5,0.81]
[1766509318833,1.87690293,124.54,124.5,0.81]
[1766509319021,0.68,124.53,124.5,0.1]
[1766509319426,9.90774134,124.52,124.5,0.1]
[1766509319627,10.58726724,124.53,124.5,0.1]
[1766509320029,1.87690293,124.52,124.5,0.1]
[1766509320244,2.55690293,124.53,124.5,0.1]
[1766509320439,10.58712738,124.53,124.5,0.1]
[1766509320727,21.02432698,124.54,124.5,0.81]
[1766509320931,1.87690293,124.53,124.5,0.81]
[1766509321145,10.58665402,124.54,124.5,0.81]
[1766509321341,1.87690293,124.53,124.5,0.81]
[1766509322654,10.58665402,124.54,124.5,0.81]
[1766509323028,2.55690293,124.53,124.5,0.1]
[1766509323357,1.87690293,124.52,124.5,0.1]
[1766509323757,10.58665402,124.54,124.51,0.71]
[1766509324250,1.87690293,124.53,124.5,0.81]
[1766509324426,48.93546638,124.65,124.51,0.71]
[1766509324427,0.68,124.57,124.51,0.71]
[1766509324625,1.87690293,124.56,124.51,0.71]
[1766509324854,1.87690293,124.56,124.51,1.87690293]
[1766509325052,18.46533385,124.57,124.5,0.1]
[1766509325230,1.87690293,124.52,124.5,0.1]
[1766509325843,1.87690293,124.51,124.5,0.1]
[1766509326043,2.93808401,124.51,124.5,0.1]
[1766509326552,13.37575697,124.51,124.5,0.1]
[1766509326850,10.43767296,124.51,124.5,0.1]
[1766509329848,13.37575697,124.51,124.5,0.1]
[1766509331150,10.43767296,124.51,124.5,0.1]
[1766509332645,10.43767296,124.51,124.5,0.81]
[1766509332854,10.43767296,124.51,124.5,0.1]
[1766509340465,11.63851363,124.53,124.5,0.1]
[1766509340645,10.43767296,124.51,124.5,0.1]
[1766509341971,11.63855204,124.53,124.5,0.81]
[1766509342144,10.43767296,124.51,124.5,0.81]
[1766509345046,8.70012655,124.54,124.5,3.03808401]
[1766509345246,10.43767296,124.53,124.5,0.81]
[1766509346158,2.93808401,124.6,124.51,0.71]
[1766509346159,10.9672105,124.55,124.51,0.71]
[1766509346353,3.60808401,124.54,124.51,0.71]
[1766509346757,0.67,124.54,124.51,0.71]
[1766509347357,3.60808401,124.52,124.5,0.1]
[1766509347952,2.93808401,124.51,124.49,0.71]
[1766509349065,0.67,124.52,124.49,0.71]
[1766509349262,2.93808401,124.51,124.49,0.71]
[1766509349579,2.93808401,124.51,124.48,0.1]
[1766509349580,10.9696898,124.51,124.48,0.81]
[1766509349751,10.9696898,124.51,124.48,1e-08]
[1766509349752,3.60808401,124.49,124.48,1e-08]
[1766509349952,3.60808401,124.49,124.45,0.2]
[1766509349953,0.67,124.48,124.45,0.2]
[1766509350259,3.60808401,124.47,124.45,0.2]
[1766509350872,0.67,124.47,124.45,0.2]
[1766509351180,3.60808401,124.47,124.45,0.2]
[1766509351680,3.60808401,124.45,124.44,0.2]
[1766509351879,0.56,124.44,124.41,14.66]
[1766509352182,2.93808401,124.44,124.41,15.37]
[1766509354000,2.93808401,124.42,124.4,0.2]
[1766509354682,2.93808401,124.41,124.4,0.2]
[1766509355591,13.93575697,124.42,124.4,0.2]
[1766509356880,2.93808401,124.41,124.4,0.2]
[1766509357461,10.99767296,124.42,124.4,0.2]
[1766509357763,13.37575697,124.42,124.4,0.2]
[1766509358290,13.93575697,124.42,124.4,0.2]
[1766509359775,13.37575697,124.42,124.4,0.2]
[1766509361966,10.43767296,124.42,124.4,0.2]
[1766509362292,2.93808401,124.41,124.39,0.2]
[1766509362483,2.93808401,124.4,124.39,0.2]
[1766509362799,3.49808401,124.41,124.39,0.2]
[1766509362979,2.93808401,124.41,124.39,0.2]
[1766509363179,2.93808401,124.4,124.39,0.2]
[1766509363379,3.49808401,124.4,124.37,0.85]
[1766509363781,2.93808401,124.4,124.37,0.85]
[1766509364274,10.97676145,124.4,124.37,0.85]
[1766509364680,11.53676145,124.4,124.37,0.85]
[1766509364879,3.49808401,124.4,124.37,0.85]
[1766509365079,11.53668013,124.4,124.37,0.85]
[1766509365481,2.93808401,124.39,124.37,0.2]
[1766509365681,2.93808401,124.38,124.37,0.2]
[1766509366079,3.49808401,124.39,124.37,0.2]
[1766509366872,2.93808401,124.39,124.37,0.2]
[1766509367297,0.56,124.42,124.38,0.65]
[1766509367499,10.43767296,124.4,124.38,0.65]
[1766509369802,19.03626274,124.4,124.37,0.2]
[1766509370104,13.93575697,124.4,124.37,0.85]
[1766509370401,21.9743532,124.4,124.37,0.85]
[1766509370596,10.99767296,124.4,124.37,0.85]
[1766509370899,3.49808401,124.43,124.38,0.65]
[1766509371083,2.93808401,124.44,124.39,0.65]
[1766509371286,0.56,124.45,124.38,0.65]
[1766509371483,13.93575697,124.45,124.41,0.65]
[1766509371784,13.93575697,124.45,124.41,8.68792368]
[1766509371984,3.49808401,124.47,124.42,0.65]
[1766509372203,0.56,124.47,124.43,0.65]
[1766509372399,10.99767296,124.47,124.43,0.65]
[1766509372743,25.65171807,124.48,124.44,0.65]
[1766509372744,3.49808401,124.48,124.44,0.65]
[1766509372874,2.93808401,124.47,124.44,0.65]
[1766509374018,10.43767296,124.47,124.44,0.65]
[1766509374199,10.43767296,124.47,124.44,10.97408212]
[1766509374505,10.43767296,124.47,124.44,0.65]
[1766509377702,10.43767296,124.47,124.44,3.58808401]
[1766509377910,10.43767296,124.47,124.44,0.65]
[1766509378810,10.43767296,124.47,124.44,8.68597395]
[1766509379112,13.37575697,124.49,124.46,0.65]
[1766509379312,10.43767296,124.49,124.46,0.65]
[1766509380392,10.43767296,124.49,124.47,0.65]
[1766509380919,10.43767296,124.49,124.46,0.65]
[1766509381414,0.56,124.5,124.46,11.62236208]
[1766509381605,13.93575697,124.5,124.47,0.65]
[1766509382001,3.49808401,124.5,124.47,0.65]
[1766509384197,2.93808401,124.5,124.47,0.65]
[1766509384401,21.96760625,124.51,124.47,0.65]
[1766509385515,2.93808401,124.5,124.47,0.65]
[1766509386102,1.88065325,124.5,124.47,0.65]
[1766509387116,2.44065325,124.49,124.45,8.71534702]
[1766509387496,2.44065325,124.49,124.46,0.68]
[1766509388410,1.88065325,124.48,124.46,0.68]
[1766509388731,1.88065325,124.48,124.44,1.88065325]
[1766509388732,2.44065325,124.48,124.44,8.71589396]
[1766509388926,1.88065325,124.5,124.46,0.68]
[1766509389098,12.87832621,124.51,124.47,0.68]
[1766509389830,1.88065325,124.5,124.47,0.68]
[1766509390129,2.44065325,124.5,124.46,0.68]
[1766509390425,1.88065325,124.5,124.47,0.68]
[1766509391208,12.87832621,124.51,124.47,0.68]
[1766509391403,10.99767296,124.51,124.48,0.68]
[1766509392339,12.87832621,124.51,124.48,0.68]
[1766509393009,12.31832621,124.51,124.48,0.68]
[1766509393626,1.88065325,124.49,124.46,15.34]
[1766509394902,2.44065325,124.5,124.46,23.37446714]
[1766509395420,2.44065325,124.47,124.43,8.71637136]
[1766509395621,2.44065325,124.47,124.44,8.71591019]
[1766509395811,2.44065325,124.47,124.44,0.68]
[1766509396003,0.56,124.47,124.44,0.68]
[1766509396203,2.44065325,124.47,124.44,0.68]
[1766509396521,1.88065325,124.47,124.44,0.68]
[1766509397016,10.47410059,124.48,124.44,0.68]
[1766509397616,2.44065325,124.47,124.44,0.68]
[1766509398727,1.88065325,124.48,124.44,8.03596057]
[1766509398929,1.88065325,124.48,124.45,0.68]
[1766509399407,2.44065325,124.48,124.45,0.68]
[1766509399739,0.56,124.48,124.45,0.68]
[1766509400114,2.44065325,124.48,124.45,0.68]
[1766509400802,2.44065325,124.48,124.44,8.71596057]
[1766509401807,0.56,124.48,124.45,8.71533413]
[1766509402405,1.88065325,124.49,124.46,0.68]
[1766509402621,2.44065325,124.5,124.46,0.68]
[1766509403016,1.88065325,124.49,124.46,0.68]
[1766509403221,2.44065325,124.49,124.46,0.68]
[1766509404041,10.43767296,124.51,124.46,8.03463952]
[1766509404310,1.88065325,124.53,124.49,0.68]
[1766509404622,1.88065325,124.53,124.47,14.66]
[1766509404623,10.43767296,124.51,124.48,0.68]
[1766509405123,12.87832621,124.51,124.48,0.68]
[1766509405518,20.90985182,124.51,124.47,14.66]
[1766509405714,20.90985182,124.51,124.47,15.34]
[1766509406553,10.43767296,124.51,124.48,0.68]
[1766509408735,34.73387184,124.54,124.48,0.68]
[1766509408736,10.43767296,124.53,124.49,0.68]
[1766509408920,10.43767296,124.53,124.5,0.68]
[1766509409119,8.59007498,124.54,124.5,0.68]
[1766509409319,10.43767296,124.51,124.5,0.68]
[1766509411416,12.87832621,124.51,124.48,0.68]
[1766509411654,12.31832621,124.51,124.48,0.68]
[1766509412545,10.43767296,124.51,124.48,0.68]
[1766509418914,10.43767296,124.51,124.49,0.72]
[1766509428543,10.43767296,124.51,124.5,0.72]
[1766509434274,8.59049717,124.53,124.5,0.72]
[1766509434454,8.03049717,124.53,124.5,0.72]
[1766509434768,0.2,124.55,124.51,0.72]
[1766509435085,0.2,124.55,124.52,0.72]
[1766509435444,2.64065325,124.55,124.52,0.72]
[1766509436276,10.66961689,124.55,124.52,0.72]
[1766509437284,8.78896364,124.55,124.52,0.72]
[1766509437572,2.64065325,124.55,124.52,0.72]
[1766509437958,0.2,124.55,124.52,0.72]
[1766509438175,0.2,124.55,124.53,0.72]
[1766509438873,2.58065325,124.58,124.54,0.72]
[1766509439584,0.7,124.58,124.55,0.72]
[1766509439747,2.58065325,124.59,124.55,0.72]
[1766509440249,12.31832621,124.58,124.55,0.72]
[1766509441561,14.66,124.61,124.56,0.72]
[1766509441562,19.16363573,124.6,124.56,0.72]
[1766509441770,9.90574169,124.61,124.56,1.88065325]
[1766509441972,10.60574169,124.61,124.57,0.72]
[1766509442269,13.01832621,124.61,124.57,0.72]
[1766509442767,1.88065325,124.6,124.57,0.72]
[1766509443071,2.58065325,124.6,124.56,0.72]
[1766509443377,1.88065325,124.59,124.56,0.72]
[1766509443976,8.72597504,124.6,124.56,0.72]
[1766509444164,1.88065325,124.59,124.56,0.72]
[1766509444363,10.60662829,124.6,124.56,0.72]
[1766509444870,2.58065325,124.58,124.55,0.72]
[1766509445581,1.88065325,124.58,124.55,0.72]
[1766509445778,1.88065325,124.58,124.53,36.61561077]
[1766509445779,0.7,124.59,124.53,0.72]
[1766509446077,2.93618565,124.55,124.53,0.72]
[1766509446250,11.66454793,124.56,124.53,0.72]
[1766509446758,2.93618565,124.55,124.52,0.69]
[1766509447078,11.63454793,124.56,124.52,0.69]
[1766509447948,8.69836228,124.56,124.52,0.69]
[1766509448153,11.63454793,124.56,124.52,0.69]
[1766509448448,11.63454793,124.56,124.52,3.62618565]
[1766509448449,8.69836228,124.56,124.52,3.62618565]
[1766509449079,8.69836228,124.56,124.52,2.93618565]
[1766509449284,8.69836228,124.56,124.53,0.69]
[1766509449457,10.43767296,124.55,124.53,0.69]
[1766509458493,11.63445555,124.56,124.53,0.69]
[1766509458689,19.13594286,124.56,124.53,0.69]
[1766509458869,22.07212851,124.56,124.53,0.69]
[1766509459070,19.13594286,124.56,124.53,0.69]
[1766509459272,22.07212851,124.56,124.53,0.69]
[1766509463200,19.13594286,124.56,124.53,0.69]
[1766509463371,22.07212851,124.56,124.53,0.69]
[1766509464092,2.93618565,124.55,124.53,0.69]
[1766509467701,19.13594286,124.56,124.53,0.69]
[1766509468002,2.93618565,124.55,124.53,0.69]
[1766509470708,2.93618565,124.55,124.5,17.59618565]
[1766509470709,3.60618565,124.54,124.5,15.35]
[1766509470911,2.93618565,124.51,124.48,0.69]
[1766509471093,2.93618565,124.5,124.48,0.69]
[1766509471393,2.93618565,124.49,124.47,0.69]
[1766509471604,2.93618565,124.5,124.47,0.69]
[1766509471782,0.67,124.52,124.47,8.03395078]
[1766509471986,10.96778826,124.51,124.48,0.69]
[1766509474006,2.93618565,124.51,124.48,0.69]
[1766509474506,10.96769229,124.51,124.48,0.69]
[1766509475307,2.93618565,124.51,124.48,0.69]
[1766509475711,2.93618565,124.52,124.49,0.72]
[1766509478106,13.37385861,124.52,124.49,0.72]
[1766509479109,2.93618565,124.52,124.5,0.67]
[1766509479902,2.93618565,124.53,124.5,0.67]
[1766509481487,3.65618565,124.53,124.5,0.67]
[1766509483715,3.65618565,124.51,124.48,15.33]
[1766509486712,2.93618565,124.51,124.48,14.66]
[1766509486920,2.93618565,124.51,124.49,0.67]
[1766509487396,3.65618565,124.51,124.48,15.33]
[1766509488011,3.65618565,124.51,124.48,0.67]
[1766509488215,3.65618565,124.5,124.47,8.70371005]
[1766509488592,0.72,124.5,124.47,8.70371005]
[1766509489114,3.65618565,124.51,124.48,0.67]
[1766509493323,2.93618565,124.5,124.48,0.67]
[1766509493715,3.65618565,124.51,124.48,0.67]
[1766509495521,0.72,124.51,124.48,0.67]
[1766509495898,3.65618565,124.51,124.48,0.67]
[1766509496127,11.68772754,124.51,124.48,0.67]
[1766509498322,2.93618565,124.5,124.48,0.67]
[1766509499920,8.75154189,124.51,124.48,0.67]
[1766509500096,11.68772754,124.51,124.48,0.67]
[1766509500625,2.93618565,124.5,124.48,0.67]
[1766509500822,2.93618565,124.51,124.49,0.67]
[1766509501127,0.72,124.52,124.49,0.67]
[1766509501348,3.65618565,124.5,124.47,8.70383083]
[1766509501641,3.65618565,124.51,124.48,0.67]
[1766509502113,2.93618565,124.51,124.48,0.67]
[1766509502513,3.65618565,124.51,124.48,0.67]
[1766509502743,2.93618565,124.5,124.48,0.67]
[1766509503235,0.72,124.49,124.46,8.03423038]
[1766509503437,8.03149036,124.51,124.48,0.67]
[1766509503438,14.09385861,124.51,124.48,0.67]
[1766509503735,3.65618565,124.52,124.48,0.67]
[1766509505223,3.65618565,124.52,124.48,8.70333691]
[1766509505524,3.65618565,124.52,124.49,0.67]
[1766509506716,0.72,124.52,124.49,0.67]
[1766509506923,11.13767296,124.55,124.5,0.68]
[1766509507112,3.63618565,124.54,124.5,0.68]
[1766509507314,3.63618565,124.54,124.51,0.68]
[1766509507904,2.57951127,124.54,124.51,0.68]
[1766509508306,1.87951127,124.54,124.51,0.68]
[1766509508627,2.57951127,124.55,124.52,0.68]
[1766509509212,0.7,124.57,124.53,0.68]
[1766509509413,0.7,124.56,124.53,0.68]
[1766509509610,11.13767296,124.56,124.53,0.68]
[1766509511134,2.57951127,124.55,124.52,8.03057515]